fUSD/lending_fUSD_20250930
["ID","MTS","AMOUNT","RATE_DAILY","PERIOD"]
[388618100,1759258261539,-151.0,0.000249,7]
[388618101,1759258261548,-151.0,0.000249,7]
[388618102,1759258261558,-151.0,0.000249,7]
[388618103,1759258261567,-151.0,0.000249,7]
[388618104,1759258261576,-151.0,0.000249,7]
[388618105,1759258261585,-151.0,0.000249,7]
[388618106,1759258261594,-151.0,0.000249,7]
[388618107,1759258261603,-151.0,0.000249,7]
[388618108,1759258261613,-151.0,0.000249,7]
[388618109,1759258261622,-151.0,0.000249,7]
[388618110,1759258261631,-151.0,0.000249,7]
[388618111,1759258261640,-151.0,0.000249,7]
[388618112,1759258261650,-151.0,0.000249,7]
[388618113,1759258261659,-151.0,0.000249,7]
[388618114,1759258261669,-192.566683,0.000249,7]
[388618115,1759258261678,-1049.291759,0.000249,7]
[388618116,1759258261687,-1049.291759,0.000249,7]
[388618117,1759258261697,-1049.291759,0.000249,7]
[388618118,1759258261706,-1049.291759,0.000249,7]
[388618119,1759258261715,-151.0,0.000249,7]
[388618120,1759258261724,-401.758908,0.000249,7]
[388618121,1759258261734,-151.0,0.000249,7]
[388618122,1759258261744,-151.0,0.000249,7]
[388618123,1759258261754,-401.758908,0.000249,7]
[388618124,1759258261764,-401.758908,0.000249,7]
[388618125,1759258261774,-401.758908,0.000249,7]
[388618126,1759258261784,-151.0,0.000249,7]
[388618127,1759258261794,-151.0,0.000249,7]
[388618128,1759258261803,-414.118349,0.000249,7]
[388618129,1759258261812,-151.0,0.000249,7]
[388618130,1759258261822,-414.118349,0.000249,7]
[388618131,1759258261831,-151.0,0.000249,7]
[388618132,1759258261841,-414.118349,0.000249,7]
[388618133,1759258261850,-414.118349,0.000249,7]
[388618134,1759258261859,-168.699071,0.000249,7]
[388618135,1759258261868,-168.699071,0.000249,7]
[388618136,1759258261877,-168.699071,0.000249,7]
[388618137,1759258261887,-168.699071,0.000249,7]
[388618138,1759258261895,-151.0,0.000249,7]
[388618139,1759258261905,-578.50109,0.000249,7]
[388618140,1759258261915,-578.50109,0.000249,7]
[388618141,1759258261924,-578.50109,0.000249,7]
[388618142,1759258261934,-578.50109,0.000249,7]
[388618143,1759258261943,-151.0,0.000249,7]
[388618144,1759258261952,-151.0,0.000249,7]
[388618145,1759258261961,-151.0,0.000249,7]
[388618146,1759258261970,-151.0,0.000249,7]
[388618147,1759258261979,-151.0,0.000249,7]
[388618148,1759258261988,-151.0,0.000249,7]
[388618149,1759258261996,-151.0,0.000249,7]
[388618150,1759258262005,-161.036249,0.000249,7]
[388618151,1759258262014,-151.0,0.000249,7]
[388618152,1759258262023,-151.0,0.000249,7]
[388618153,1759258262033,-189.196544,0.000249,7]
[388618154,1759258262042,-183.808794,0.000249,7]
[388618155,1759258262051,-160.526297,0.000249,7]
[388618156,1759258262061,-189.196544,0.000249,7]
[388618157,1759258262070,-183.808794,0.000249,7]
[388618158,1759258262079,-160.526297,0.000249,7]
[388618159,1759258262088,-189.196544,0.000249,7]
[388618160,1759258262097,-183.808794,0.000249,7]
[388618161,1759258262106,-160.526297,0.000249,7]
[388618162,1759258262115,-189.196544,0.000249,7]
[388618163,1759258262124,-183.808794,0.000249,7]
[388618164,1759258262133,-153.81248,0.000249,7]
[388618165,1759258262142,-160.526297,0.000249,7]
[388618166,1759258262151,-151.0,0.000249,7]
[388618167,1759258262160,-151.0,0.000249,7]
[388618168,1759258262170,-151.0,0.000249,7]
[388618169,1759258262179,-151.0,0.000249,7]
[388618170,1759258262189,-151.0,0.000249,7]
[388618171,1759258262198,-151.0,0.000249,7]
[388618172,1759258262208,-151.0,0.000249,7]
[388618173,1759258262218,-204.762953,0.000249,7]
[388618174,1759258262228,-151.0,0.000249,7]
[388618175,1759258262238,-151.0,0.000249,7]
[388618176,1759258262249,-151.0,0.000249,7]
[388618177,1759258262259,-151.0,0.000249,7]
[388618178,1759258262268,-151.0,0.000249,7]
[388618179,1759258262278,-183.100083,0.000249,7]
[388618180,1759258262287,-1466.460972,0.000249,7]
[388618181,1759258262296,-151.0,0.000249,7]
[388618182,1759258262306,-289.189527,0.000249,7]
[388618183,1759258262317,-183.100083,0.000249,7]
[388618184,1759258262334,-1466.460972,0.000249,7]
[388618185,1759258262343,-289.189527,0.000249,7]
[388618186,1759258262352,-183.100083,0.000249,7]
[388618187,1759258262361,-1466.460972,0.000249,7]
[388618188,1759258262371,-289.189527,0.000249,7]
[388618189,1759258262380,-183.100083,0.000249,7]
[388618190,1759258262390,-1466.460972,0.000249,7]
[388618191,1759258262400,-289.189527,0.000249,7]
[388618192,1759258262410,-151.0,0.000249,7]
[388618193,1759258262419,-151.0,0.000249,7]
[388618194,1759258262427,-151.0,0.000249,7]
[388618195,1759258262436,-151.0,0.000249,7]
[388618196,1759258262446,-151.0,0.000249,7]
[388618197,1759258262456,-151.0,0.000249,7]
[388618198,1759258262466,-151.0,0.000249,7]
[388618199,1759258262475,-452.589843,0.000249,7]
[388618200,1759258262484,-452.589843,0.000249,7]
[388618201,1759258262494,-452.589843,0.000249,7]
[388618202,1759258262503,-452.589843,0.000249,7]
[388618203,1759258262515,-160.0,0.000249,14]
[388618204,1759258262525,-160.0,0.000249,14]
[388618205,1759258262534,-160.0,0.000249,14]
[388618206,1759258262543,-160.0,0.000249,14]
[388618207,1759258262553,-160.0,0.000249,14]
[388618208,1759258262564,-160.0,0.000249,14]
[388618209,1759258262572,-316.1811,0.000249,7]
[388618210,1759258262581,-160.0,0.000249,14]
[388618211,1759258262590,-160.0,0.000249,14]
[388618212,1759258262598,-160.0,0.000249,14]
[388618213,1759258262607,-160.0,0.000249,14]
[388618214,1759258262616,-151.0,0.000249,7]
[388618215,1759258262625,-160.0,0.000249,14]
[388618216,1759258262634,-151.0,0.000249,7]
[388618217,1759258262642,-316.1811,0.000249,7]
[388618218,1759258262651,-160.0,0.000249,14]
[388618219,1759258262660,-160.0,0.000249,14]
[388618220,1759258262669,-316.1811,0.000249,7]
[388618221,1759258262678,-160.0,0.000249,14]
[388618222,1759258262686,-160.0,0.000249,14]
[388618223,1759258262695,-460.574631,0.000249,7]
[388618224,1759258262704,-160.0,0.000249,14]
[388618225,1759258262713,-316.1811,0.000249,7]
[388618226,1759258262722,-151.0,0.000249,7]
[388618227,1759258262731,-160.0,0.000249,14]
[388618228,1759258262740,-160.0,0.000249,14]
[388618229,1759258262749,-460.574631,0.000249,7]
[388618230,1759258262758,-160.0,0.000249,14]
[388618231,1759258262767,-160.0,0.000249,14]
[388618232,1759258262775,-160.0,0.000249,14]
[388618233,1759258262784,-160.0,0.000249,14]
[388618234,1759258262793,-151.0,0.000249,7]
[388618235,1759258262802,-160.0,0.000249,14]
[388618236,1759258262811,-460.574631,0.000249,7]
[388618237,1759258262820,-160.0,0.000249,14]
[388618238,1759258262830,-160.0,0.000249,14]
[388618239,1759258262839,-160.0,0.000249,14]
[388618240,1759258262847,-160.0,0.000249,14]
[388618241,1759258262856,-160.0,0.000249,14]
[388618242,1759258262866,-460.574631,0.000249,7]
[388618243,1759258262875,-160.0,0.000249,14]
[388618244,1759258262884,-151.0,0.000249,7]
[388618245,1759258262893,-160.0,0.000249,14]
[388618246,1759258262902,-160.0,0.000249,14]
[388618247,1759258262912,-160.0,0.000249,14]
[388618248,1759258262921,-151.0,0.000249,7]
[388618249,1759258262930,-151.0,0.000249,7]
[388618250,1759258262939,-227.649553,0.000249,7]
[388618251,1759258262948,-151.0,0.000249,7]
[388618252,1759258262957,-1594.129294,0.000249,7]
[388618253,1759258262966,-227.649553,0.000249,7]
[388618254,1759258262976,-1594.129294,0.000249,7]
[388618255,1759258262985,-227.649553,0.000249,7]
[388618256,1759258262995,-160.0,0.000249,14]
[388618257,1759258263004,-160.0,0.000249,14]
[388618258,1759258263013,-160.0,0.000249,14]
[388618259,1759258263022,-160.0,0.000249,14]
[388618260,1759258263031,-1594.129294,0.000249,7]
[388618261,1759258263040,-160.0,0.000249,14]
[388618262,1759258263050,-403.768052,0.000249,7]
[388618263,1759258263059,-227.649553,0.000249,7]
[388618264,1759258263068,-160.0,0.000249,14]
[388618265,1759258263077,-160.0,0.000249,14]
[388618266,1759258263086,-160.0,0.000249,14]
[388618267,1759258263095,-160.0,0.000249,14]
[388618268,1759258263104,-1594.129294,0.000249,7]
[388618269,1759258263113,-160.0,0.000249,14]
[388618270,1759258263122,-160.0,0.000249,14]
[388618271,1759258263131,-403.768052,0.000249,7]
[388618272,1759258263140,-160.0,0.000249,14]
[388618273,1759258263149,-160.0,0.000249,14]
[388618274,1759258263158,-160.0,0.000249,14]
[388618275,1759258263167,-160.0,0.000249,14]
[388618276,1759258263177,-403.768052,0.000249,7]
[388618277,1759258263186,-160.0,0.000249,14]
[388618278,1759258263194,-160.0,0.000249,14]
[388618279,1759258263204,-160.0,0.000249,14]
[388618280,1759258263212,-151.0,0.000249,7]
[388618281,1759258263221,-160.0,0.000249,14]
[388618282,1759258263230,-160.0,0.000249,14]
[388618283,1759258263239,-403.768052,0.000249,7]
[388618284,1759258263248,-160.0,0.000249,14]
[388618285,1759258263258,-160.0,0.000249,14]
[388618286,1759258263267,-160.0,0.000249,14]
[388618287,1759258263277,-160.0,0.000249,14]
[388618288,1759258263286,-151.0,0.000249,7]
[388618289,1759258263295,-160.0,0.000249,14]
[388618290,1759258263304,-151.0,0.000249,7]
[388618291,1759258263314,-160.0,0.000249,14]
[388618292,1759258263326,-160.0,0.000249,14]
[388618293,1759258263336,-160.0,0.000249,14]
[388618294,1759258263345,-160.0,0.000249,14]
[388618295,1759258263354,-151.0,0.000249,7]
[388618296,1759258263363,-302.05390825,0.000249,14]
[388618297,1759258263373,-151.0,0.000249,7]
[388618298,1759258263383,-151.0,0.000249,7]
[388618299,1759258263391,-151.0,0.000249,7]
[388618300,1759258263402,-151.0,0.000249,7]
[388618301,1759258263412,-208.291936,0.000249,7]
[388618302,1759258263421,-832.222642,0.000249,7]
[388618303,1759258263431,-832.222642,0.000249,7]
[388618304,1759258263440,-832.222642,0.000249,7]
[388618305,1759258263449,-151.0,0.000249,7]
[388618306,1759258263458,-832.222642,0.000249,7]
[388618307,1759258263467,-151.0,0.000249,7]
[388618308,1759258263476,-151.0,0.000249,7]
[388618309,1759258263702,-151.0,0.000249,7]
[388618310,1759258263714,-151.0,0.000249,7]
[388618311,1759258263723,-151.0,0.000249,7]
[388618312,1759258263732,-328.843701,0.000249,7]
[388618313,1759258263741,-151.0,0.000249,7]
[388618314,1759258263750,-151.0,0.000249,7]
[388618315,1759258263759,-328.843701,0.000249,7]
[388618316,1759258263768,-151.0,0.000249,7]
[388618317,1759258263777,-328.843701,0.000249,7]
[388618318,1759258263786,-151.0,0.000249,7]
[388618319,1759258263795,-151.0,0.000249,7]
[388618320,1759258263804,-328.843701,0.000249,7]
[388618321,1759258263813,-151.0,0.000249,7]
[388618322,1759258263822,-151.0,0.000249,7]
[388618323,1759258263831,-151.0,0.000249,7]
[388618324,1759258263840,-214.24545,0.000249,7]
[388618325,1759258263851,-151.0,0.000249,7]
[388618326,1759258263861,-151.0,0.000249,7]
[388618327,1759258263870,-214.24545,0.000249,7]
[388618328,1759258263879,-151.0,0.000249,7]
[388618329,1759258263888,-177.544508,0.000249,7]
[388618330,1759258263897,-151.0,0.000249,7]
[388618331,1759258263907,-151.0,0.000249,7]
[388618332,1759258263916,-214.24545,0.000249,7]
[388618333,1759258263926,-151.0,0.000249,7]
[388618334,1759258263936,-177.544508,0.000249,7]
[388618335,1759258263946,-151.0,0.000249,7]
[388618336,1759258263956,-214.24545,0.000249,7]
[388618337,1759258263965,-177.544508,0.000249,7]
[388618338,1759258263974,-151.0,0.000249,7]
[388618339,1759258263983,-177.544508,0.000249,7]
[388618340,1759258263992,-151.0,0.000249,7]
[388618341,1759258264001,-151.0,0.000249,7]
[388618342,1759258264011,-431.615768,0.000249,7]
[388618343,1759258264020,-478.460183,0.000249,7]
[388618344,1759258264030,-431.615768,0.000249,7]
[388618345,1759258264039,-478.460183,0.000249,7]
[388618346,1759258264048,-151.0,0.000249,7]
[388618347,1759258264057,-431.615768,0.000249,7]
[388618348,1759258264066,-478.460183,0.000249,7]
[388618349,1759258264075,-431.615768,0.000249,7]
[388618350,1759258264084,-478.460183,0.000249,7]
[388618351,1759258264093,-151.0,0.000249,7]
[388618352,1759258264102,-151.0,0.000249,7]
[388618353,1759258264111,-178.191646,0.000249,7]
[388618354,1759258264120,-178.191646,0.000249,7]
[388618355,1759258264129,-178.191646,0.000249,7]
[388618356,1759258264138,-178.191646,0.000249,7]
[388618357,1759258264149,-151.0,0.000249,7]
[388618358,1759258264159,-151.0,0.000249,7]
[388618359,1759258264168,-41387.15167128,0.000249,3]
[388618360,1759258264264,-2769.0077761,0.000249,3]
[388618361,1759258264298,-6971.73546259,0.000249,3]
[388618363,1759258447484,206.62,0.00010951,2]
[388618365,1759258855909,158.83,0.00028685,120]
[388618366,1759258861233,151.0,0.00010951,2]
[388618367,1759259159351,151.0,0.00010951,2]
[388618368,1759259161726,227.7808243,0.00010951,2]
[388618370,1759259432321,-150.67581667,0.0001726,2]
[388618371,1759259432331,-250.0,0.00017286,2]
[388618372,1759259432341,-990.782,0.00017366,2]
[388618373,1759259432351,-3848.99801069,0.00017397,2]
[388618374,1759259432360,-3786.20033151,0.00017403,2]
[388618375,1759259432371,-62.79767918,0.00017403,2]
[388618376,1759259432381,-2603.20232082,0.00017406,2]
[388618377,1759259432512,-1245.79568987,0.00017406,2]
[388618378,1759259432521,-1117.53322839,0.00017418,2]
[388618379,1759259432563,-1510.81850722,0.00017418,2]
[388618380,1759259432628,-1220.64627508,0.00017418,2]
[388618381,1759259432638,-1553.64931392,0.00017442,2]
[388618382,1759259432649,-2295.34869677,0.00017442,2]
[388618383,1759259432658,-207.66601027,0.00018024,2]
[388618384,1759259432668,-748.69190691,0.00018124,2]
[388618385,1759259432677,-150.91,0.00018931,2]
[388618386,1759259432687,-150.67581667,0.00018931,2]
[388618387,1759259432697,-1852.42,0.00018965,2]
[388618388,1759259432708,-1200.0,0.00018973,2]
[388618389,1759259432718,-7965.41053268,0.00018974,2]
[388618390,1759259432727,-231.28369723,0.00018974,2]
[388618391,1759259432736,-424.62,0.00018981,2]
[388618392,1759259432745,-213.58804718,0.00018985,2]
[388618393,1759259432754,-500.0,0.00018985,2]
[388618394,1759259432763,-473.27670991,0.00018985,2]
[388618440,1759259439455,-982.41,0.00018985,2]
[388618441,1759259439465,-1114.77865963,0.00018986,2]
[388618442,1759259439474,-250.0,0.00018986,2]
[388618443,1759259439483,-300.0,0.00018986,2]
[388618444,1759259439493,-866.92,0.0001903,2]
[388618445,1759259439502,-158.83,0.00019124,2]
[388618446,1759259439512,-319.59103404,0.00019131,2]
[388618447,1759259439524,-642.44887053,0.00019131,2]
[388618448,1759259439533,-591.95744827,0.00019149,2]
[388618449,1759259439615,-551.09530478,0.00019149,2]
[388618450,1759259439656,-427.80498489,0.00019149,2]
[388618451,1759259439667,-3429.15226206,0.00019149,2]
[388618452,1759259439676,-4117.13560527,0.00019181,2]
[388618453,1759259439687,-2727.75519346,0.00019181,2]
[388618454,1759259439696,-982.41,0.00019259,2]
[388618455,1759259439705,-168.0,0.00019265,2]
[388618457,1759259439714,-168.0,0.0001933,2]
[388618458,1759259439723,-168.0,0.00019353,2]
[388618460,1759259439732,-200.0,0.00019371,2]
[388618462,1759259439741,-322.6107,0.00019371,2]
[388618464,1759259439750,-601.3376128,0.00019371,2]
[388618466,1759259439759,-500.0,0.00019371,2]
[388618468,1759259439768,-200.0,0.00019371,2]
[388618470,1759259439777,-500.0,0.00019371,2]
[388618472,1759259439785,-262.01115332,0.00019371,2]
[388618474,1759259439794,-151.0,0.00019371,2]
[388618476,1759259439803,-151.0,0.00019371,2]
[388618477,1759259439812,-151.0,0.00019371,2]
[388618479,1759259439822,-151.0,0.00019371,2]
[388618481,1759259439831,-500.0,0.00019371,2]
[388618483,1759259439840,-151.0,0.00019371,2]
[388618485,1759259439850,-500.0,0.00019371,2]
[388618487,1759259439859,-151.0,0.00019371,2]
[388618489,1759259439871,-151.0,0.00019371,2]
[388618491,1759259439883,-151.0,0.00019371,2]
[388618493,1759259439892,-151.0,0.00019371,2]
[388618495,1759259439902,-151.0,0.00019371,2]
[388618497,1759259439912,-297.71832794,0.00019371,2]
[388618500,1759259439923,-34680.60785081,0.00019384,2]
[388618502,1759259439931,-474.52590314,0.00019391,2]
[388618504,1759259439941,-563.6423,0.00019394,2]
[388618506,1759259439950,-168.0,0.00019411,2]
[388618508,1759259439961,-1306.0,0.00019461,2]
[388618510,1759259439970,-1584.0,0.00019461,2]
[388618512,1759259439979,-814.0,0.00019461,2]
[388618514,1759259439989,-6233.0,0.00019461,2]
[388618516,1759259439998,-17897.28292708,0.00019461,2]
[388618518,1759259440010,-1021.71707292,0.00019461,2]
[388618520,1759259440019,-621.0,0.00019461,2]
[388618522,1759259440027,-362.78292708,0.00019461,2]
[388618568,1759259441758,-2503.6449997,0.00019461,2]
[388618569,1759259441797,-971.31152481,0.00019461,2]
[388618570,1759259441809,-275.26054841,0.00019461,2]
[388618571,1759259441818,-252.20445147,0.00019461,2]
[388618572,1759259441830,-853.11791751,0.00019461,2]
[388618573,1759259441901,-3129.67763102,0.00019461,2]
[388618574,1759259441912,-168.0,0.00019464,2]
[388618575,1759259441923,-165.88,0.0001949,2]
[388618576,1759259441932,-6382.33964001,0.00019491,2]
[388618577,1759259441941,-982.41,0.00019533,2]
[388618578,1759259441952,-168.0,0.00019562,2]
[388618579,1759259441962,-168.0,0.00019606,2]
[388618580,1759259441971,-4498.61642763,0.00019689,2]
[388618581,1759259441980,-1000.0,0.00019717,2]
[388618582,1759259441989,-982.41,0.00019807,2]
[388618583,1759259441999,-168.0,0.00019809,2]
[388618584,1759259442008,-4394.66022023,0.00019836,2]
[388618585,1759259442018,-380.29646874,0.0002,2]
[388618586,1759259442027,-400.88522955,0.0002,7]
[388618587,1759259442036,-1687.31,0.0002,7]
[388618588,1759259442046,-982.41,0.00020081,2]
[388618589,1759259442055,-150.99,0.00020145,2]
[388618590,1759259442064,-150.99,0.00020145,2]
[388618591,1759259442074,-2193.35,0.00020145,2]
[388618592,1759259442083,-1000.0,0.00020147,2]
[388618593,1759259442093,-168.0,0.00020148,2]
[388618594,1759259442102,-380.29646874,0.000202,2]
[388618595,1759259442112,-5008.33988712,0.00020247,2]
[388618596,1759259442121,-158.706,0.00020258,2]
[388618597,1759259442130,-2044.0,0.00020258,2]
[388618598,1759259442140,-787.0,0.00020258,2]
[388618599,1759259442151,-1264.0,0.00020258,2]
[388618600,1759259442161,-3398.0,0.00020258,2]
[388618601,1759259442172,-603.0,0.00020258,2]
[388618602,1759259442182,-570.0,0.00020258,2]
[388618603,1759259442192,-168.0,0.00020259,2]
[388618604,1759259442203,-168.0,0.00020274,2]
[388618605,1759259442212,-239.84119403,0.00020343,2]
[388618606,1759259442223,-982.41,0.00020355,2]
[388618607,1759259442233,-168.0,0.00020367,2]
[388618608,1759259442242,-168.0,0.00020384,2]
[388618609,1759259442251,-380.29646874,0.000204,2]
[388618610,1759259442261,-5756.0,0.00020406,2]
[388618611,1759259442271,-500.0,0.00020456,2]
[388618612,1759259442280,-168.0,0.00020483,2]
[388618613,1759259442290,-168.0,0.00020525,2]
[388618614,1759259442301,-189.38,0.00020548,2]
[388618615,1759259442312,-168.0,0.00020571,2]
[388618616,1759259442321,-380.29646874,0.000206,2]
[388618617,1759259442330,-32846.72841247,0.00020613,2]
[388618618,1759259442339,-982.41,0.00020628,2]
[388618619,1759259442348,-168.0,0.00020703,2]
[388618620,1759259442358,-334.5472959,0.0002074,2]
[388618621,1759259442367,-1436.0,0.00020782,2]
[388618622,1759259442376,-168.0,0.0002079,2]
[388618623,1759259442385,-380.29646874,0.000208,2]
[388618624,1759259442394,-150.0,0.000208,2]
[388618625,1759259442403,-150.0,0.000208,2]
[388618626,1759259442412,-231.02443942,0.000208,2]
[388618627,1759259442422,-478.26994545,0.000208,2]
[388618628,1759259442432,-214.0,0.000208,2]
[388618629,1759259442442,-2500.0,0.00020851,2]
[388618630,1759259442451,-168.0,0.00020868,2]
[388618631,1759259442462,-982.46,0.00020902,2]
[388618632,1759259442471,-168.0,0.00020926,2]
[388618634,1759259442480,-1000.0,0.00020957,2]
[388618636,1759259442489,-1000.0,0.00020986,2]
[388618638,1759259442499,-150.0,0.00021005,2]
[388618640,1759259442508,-250.0,0.00021007,2]
[388618642,1759259442517,-188.04,0.00021007,2]
[388618645,1759259442528,-168.0,0.00021025,2]
[388618647,1759259442537,-2500.0,0.00021077,3]
[388618649,1759259442547,-168.0,0.00021109,2]
[388618651,1759259442555,-150.0,0.00021339,2]
[388618653,1759259442564,-200.0,0.00021366,2]
[388618655,1759259442573,-162.84510011,0.00021712,2]
[388618656,1759259442583,-1000.0,0.00021773,2]
[388618658,1759259442592,-5000.0,0.00021918,2]
[388618660,1759259442601,-200.0,0.00021918,2]
[388618663,1759259442610,-552.52,0.00021945,30]
[388618666,1759259442620,-807.01,0.00022,2]
[388618669,1759259442629,-346.92554585,0.00022109,2]
[388618672,1759259442638,-600.0,0.0002211,2]
[388618675,1759259442647,-623.58710448,0.0002211,2]
[388618677,1759259442656,-200.0,0.00022221,2]
[388618679,1759259442665,-150.0,0.00022339,2]
[388618681,1759259442675,-250.0,0.00022374,2]
[388618683,1759259442684,-505.0,0.00022384,2]
[388618685,1759259442693,-2911.803,0.00022389,2]
[388618688,1759259442703,-1306.0,0.00022461,2]
[388618689,1759259442712,-1584.0,0.00022461,2]
[388618691,1759259442721,-814.0,0.00022461,2]
[388618693,1759259442731,-6233.0,0.00022461,2]
[388618695,1759259442740,-18919.0,0.00022461,2]
[388618697,1759259442749,-621.0,0.00022461,2]
[388618698,1759259442758,-4113.0,0.00022461,2]
[388618699,1759259442767,-800.0,0.00022553,13]
[388618700,1759259442776,-800.0,0.00022553,13]
[388618701,1759259442786,-800.0,0.00022553,13]
[388618702,1759259442795,-800.0,0.00022553,13]
[388618703,1759259442804,-200.0,0.00022553,2]
[388618704,1759259442814,-200.0,0.00022553,2]
[388618705,1759259442822,-200.0,0.00022553,2]
[388618706,1759259442832,-168.03,0.0002256,2]
[388618707,1759259442842,-1000.0,0.0002256,2]
[388618708,1759259442851,-600.0,0.00022658,2]
[388618709,1759259442860,-190.75110517,0.00023,2]
[388618710,1759259442870,-216.23580106,0.00023,2]
[388618711,1759259442885,-1000.0,0.00023,2]
[388618712,1759259442898,-622.0,0.00023,7]
[388618713,1759259442908,-1799.99999901,0.00023,3]
[388618714,1759259442919,-164.0,0.00023,7]
[388618715,1759259442929,-400.0,0.00023014,2]
[388618716,1759259442939,-3845.9,0.00023185,7]
[388618717,1759259442948,-3845.9,0.00023185,7]
[388618718,1759259442960,-3845.9,0.00023185,7]
[388618719,1759259442969,-3845.9,0.00023185,7]
[388618720,1759259442980,-474.52590314,0.00023185,7]
[388618721,1759259442990,-190.75110517,0.000232,2]
[388618722,1759259443000,-216.23580106,0.000232,2]
[388618723,1759259443009,-600.0,0.00023206,2]
[388618724,1759259443018,-5683.15718724,0.00023209,2]
[388618725,1759259443028,-2044.0,0.00023258,2]
[388618726,1759259443038,-787.0,0.00023258,2]
[388618727,1759259443048,-1258.0,0.00023258,2]
[388618728,1759259443057,-593.637,0.00023258,2]
[388618729,1759259443066,-603.0,0.00023258,2]
[388618730,1759259443076,-570.0,0.00023258,2]
[388618731,1759259443086,-622.0,0.00023288,7]
[388618732,1759259443095,-150.0,0.00023339,2]
[388618733,1759259443105,-1000.0,0.00023347,2]
[388618734,1759259443117,-807.01,0.00023374,2]
[388618735,1759259443126,-3845.9,0.00023459,7]
[388618736,1759259443136,-3845.9,0.00023459,7]
[388618737,1759259443145,-359.76179104,0.00023478,2]
[388618738,1759259443154,-190.75110517,0.000235,2]
[388618739,1759259443164,-216.23580106,0.000235,2]
[388618740,1759259443173,-216.23580106,0.000237,2]
[388618741,1759259443183,-528.09,0.00023733,2]
[388618742,1759259443192,-150.04,0.00023733,2]
[388618743,1759259443202,-3845.9,0.00023733,7]
[388618744,1759259443212,-3845.9,0.00023733,7]
[388618745,1759259443222,-600.0,0.00023754,2]
[388618746,1759259443232,-309.0,0.000238,2]
[388618747,1759259443242,-1536.52,0.00023836,2]
[388618748,1759259443252,-403.74942337,0.000239,2]
[388618749,1759259443260,-216.23580106,0.000239,2]
[388618750,1759259443269,-158.83,0.00023905,2]
[388618751,1759259443279,-3845.9,0.00024007,7]
[388618752,1759259443288,-3845.9,0.00024007,7]
[388618753,1759259443297,-161.19485016,0.00024055,2]
[388618754,1759259443306,-161.19485015,0.00024055,2]
[388618755,1759259443316,-161.19485015,0.00024055,2]
[388618756,1759259443325,-600.0,0.0002411,2]
[388618757,1759259443334,-1000.0,0.00024134,2]
[388618758,1759259443343,-601.67753041,0.00024152,2]
[388618759,1759259443353,-622.0,0.00024164,7]
[388618760,1759259443362,-167.20020183,0.00024181,2]